[Event "88th Tata Steel Masters 2026"]
[White "Giri,Anish"]
[Black "Fedoseev,Vladimir"]
[Site "Wijk aan Zee"]
[Round "9.3"]
[Annotator "TA"]
[Result "1/2-1/2"]
[Date "2026.01.27"]
[WhiteElo "2760"]
[BlackElo "2705"]
[PlyCount "98"]
[TimeControl "60"]

{[%evp 9,98,19,18,3,14,14,21,20,17,0,12,24,22,1,26,25,26,25,24,0,0,0,0,-22,-21,-12,-22,-12,-19,-13,-12,-6,-6,-10,-10,-8,-6,-6,-6,-19,-12,-17,-4,-21,-18,-18,-18,-21,-18,-23,-15,-24,-6,-17,-17,-19,-19,-20,-6,-6,-6,-7,-7,-13,-13,-14,-13,-13,-13,-13,-13,-9,0,-11,-8,-8,0,0,0,0,0,0,0,0,0,0,0,0,0,0,0]} 1. e4 {[%emt 0:0:0]} e5 {[%emt 0:0:0]} 2. Nf3 {[%emt 0:0:0]} Nf6 {[%emt 0:0:0]} 3. d4 {[%emt 0:0:0]} Nxe4 {[%emt 0:0:0]} 4. dxe5 {[%emt 0:0:0]} d5 {[%emt 0:0:0]} 5. Nbd2 {[%emt 0:0:0]} Nxd2 {[%emt 0:0:0]} 6. Bxd2 {[%emt 0:0:0] C43: Petroff Defence: 3 d4.} Be7 {[%emt 0:0:0]} 7. Bd3 {[%emt 0:0:0]} c5 {[%emt 0:0:0]} 8. c3 {[%emt 0:0:0]} Nc6 {[%emt 0:0:0]} 9. Qe2 {[%emt 0:0:0]} Be6 {[%emt 0:0:0]} 10. O-O {[%emt 0:0:0]} h6 $146 {[%emt 0:4:49]} ({Predecessor:} 10... g5 11. Rab1 a6 12. Bc2 h5 13. b3 g4 14. Ne1 Qc7 15. Nd3 O-O-O 16. Rfe1 Kb8 {½-½ Madaminov,M (2560)-Suyarov,M (2482) Wch U20 Blitz 2025 (6)} )11. Rad1 {[%emt 0:0:0]} Qd7 {[%emt 0:0:42]} 12. Be3 {[%emt 0:13:57]} Rd8 {[%emt 0:8:14]} 13. Rfe1 {[%emt 0:3:29]} b6 {[%emt 0:8:17]} 14. b4 {[%emt 0:22:14]} O-O {[%emt 0:12:33]} 15. bxc5 {[%emt 0:20:5]} bxc5 {[%emt 0:0:37]} 16. h3 {[%emt 0:1:53]} Bf5 {[%emt 0:4:1]} 17. Bxf5 {[%emt 0:1:21]} Qxf5 {[%emt 0:0:37]} 18. Bxc5 {[%emt 0:1:15]} Bxc5 {[%emt 0:0:41]} 19. Qb5 {[%emt 0:0:32][%csl Yc5,Yc6]} Nxe5 {[%emt 0:12:25]} 20. Rxe5 {[%emt 0:0:37]} Qc2 {[%emt 0:0:33][%csl Ya2,Yc3,Yd1,Yf2]} 21. Qe2 {[%emt 0:0:51] Successful Defense White} Qxc3 {[%emt 0:0:42]} 22. Rexd5 {[%emt 0:0:37]} Rxd5 {[%emt 0:2:56]} 23. Rxd5 {[%emt 0:0:33]} Bb6 {[%emt 0:0:38]} 24. Rd3 {[%emt 0:6:25]} Qc4 {[%emt 0:4:4]} 25. Rd2 {[%emt 0:0:40]} Qa4 {[%emt 0:5:19]} 26. Qd1 {[%emt 0:1:21]} Qxd1+ {[%emt 0:1:45]} 27. Rxd1 $11 {[%emt 0:0:35][%mdl 4096] Endgame KRB-KRN} Rc8 {[%emt 0:0:38]} 28. Rd2 {[%emt 0:6:21]} h5 {[%emt 0:7:40]} 29. g3 {[%emt 0:1:42]} f6 {[%emt 0:2:44]} 30. Kg2 {[%emt 0:6:14]} g6 {[%emt 0:3:55]} 31. h4 {[%emt 0:0:46] The position is equal.} Kf7 {[%emt 0:1:21]} 32. Ng1 {[%emt 0:0:43]} Rc4 {[%emt 0:7:6]} 33. Ne2 {[%emt 0:3:31]} a5 {[%emt 0:6:29]} 34. Nf4 {[%emt 0:1:47]} Bc7 {[%emt 0:2:9]} 35. Nd5 {[%emt 0:0:38]} Be5 {[%emt 0:0:56]} 36. Ne3 {[%emt 0:1:2]} Ra4 {[%emt 0:0:32]} 37. Rc2 {[%emt 0:1:33]} Ke6 {[%emt 0:0:53]} 38. Rc6+ {[%emt 0:1:23]} Kd7 {[%emt 0:0:45]} 39. Rc2 {[%emt 0:1:9]} Bd4 {[%emt 0:2:6]} 40. Nd5 {[%emt 0:0:0]} Ke6 {[%emt 0:0:0]} 41. Nc7+ {[%emt 0:27:16]} Kf5 {[%emt 0:25:20]} 42. Nb5 {[%emt 0:4:14]} Be5 {[%emt 0:8:42]} 43. f4 {[%emt 0:2:44]} Ba1 {[%emt 0:1:51]} 44. Kf3 {[%emt 0:1:48]} Ke6 {[%emt 0:3:27]} 45. a3 {[%emt 0:6:58]} f5 {[%emt 0:3:1]} 46. Rc1 {[%emt 0:0:29]} Bb2 {[%emt 0:1:50][%csl Ya3,Yc1]} 47. Rc2 {[%emt 0:0:21]} Ba1 {[%emt 0:0:2]} 48. Rc1 {[%emt 0:0:11]} Bb2 {[%emt 0:0:4]} 49. Rc2 {[%emt 0:0:5]} Ba1 {[%emt 0:0:4] An interesting draw.   Weighted Error Value: White=0.04 (flawless) /Black=0.03 (flawless)   OK:         	White=5     	Black=8} 1/2-1/2

[Event "88th Tata Steel Masters 2026"]
[White "Sindarov,Javokhir"]
[Black "Abdusattorov,Nodirbek"]
[Site "Wijk aan Zee"]
[Round "9.4"]
[Annotator "TA"]
[Result "1/2-1/2"]
[Date "2026.01.27"]
[WhiteElo "2726"]
[BlackElo "2751"]
[PlyCount "80"]
[TimeControl "60"]

{[%evp 9,79,13,6,12,2,0,0,0,0,0,0,0,0,0,0,0,50,35,36,39,38,45,40,37,54,50,54,43,47,50,50,43,43,39,43,38,42,39,41,35,44,38,32,0,39,31,29,43,29,13,28,27,31,36,32,12,12,12,19,0,0,0,12,11,18,16,18,8,8,0,0,0]} 1. d4 {[%emt 0:0:0]} d5 {[%emt 0:0:0]} 2. c4 {[%emt 0:0:0]} c6 {[%emt 0:0:0]} 3. Nf3 {[%emt 0:0:0]} Nf6 {[%emt 0:0:0]} 4. g3 {[%emt 0:0:0]} Bg4 {[%emt 0:0:0]} 5. Ne5 {[%emt 0:0:0]} Bf5 {[%emt 0:0:0]} 6. cxd5 {[%emt 0:0:0] D11: Slav Defence: 3 Nf3 sidelines and 3...Nf6 4 e3 Bg4.} Qxd5 {[%emt 0:0:0]} 7. f3 {[%emt 0:12:10]} Bxb1 {[%emt 0:0:0]} 8. Rxb1 {[%emt 0:0:33]} Qxa2 {[%emt 0:0:0]} 9. Bd2 {[%emt 0:1:27]} Nbd7 {[%emt 0:0:0]} 10. e4 {[%emt 0:3:30] Repels Qd5} Nxe5 {[%emt 0:0:0]} 11. dxe5 {[%emt 0:0:38]} Nd7 {[%emt 0:0:0]} 12. Bc3 {[%emt 0:3:19]} Nc5 {[%emt 0:0:0]} (12... a6 $11 )13. Ra1 $14 {[%emt 0:3:16] White sacrificed a pawn} Qb3 {[%emt 0:0:0]} 14. Qxb3 {[%emt 0:5:20]} Nxb3 {[%emt 0:0:0]} 15. Ra3 {[%emt 0:0:34]} Nc5 {[%emt 0:0:0][%cal Yb3c5,Yc5e6,Ye6c7][%mdl 32]} 16. b4 {[%emt 0:0:33]} Ne6 {[%emt 0:0:0]} 17. b5 {[%emt 0:2:6]} Nc7 {[%emt 0:0:0]} 18. bxc6 {[%emt 0:6:15]} e6 $146 {[%emt 0:0:0] Black is weak on the light squares} ({Predecessor:} 18... bxc6 19. Bc4 e6 20. Ra5 Be7 21. Ke2 O-O 22. Rha1 Nb5 23. Bxb5 cxb5 24. Rxb5 Rfc8 {½-½ Rodshtein,M (2590)-Gurel,E (2560) Prague Challengers 6th 2024 (3)} )19. cxb7 {[%emt 0:5:35] White plays on the queen side and is better. Space Advantage White} Bxa3 {[%emt 0:0:0]} 20. bxa8=N {[%emt 0:0:47]} Nxa8 {[%emt 0:0:0]} 21. Kd2 {[%emt 0:0:46]} Ke7 {[%emt 0:0:0]} 22. Bd3 {[%emt 0:0:57]} Rb8 {[%emt 0:1:26]} 23. Ra1 {[%emt 0:2:27]} Bc5 {[%emt 0:0:36]} 24. f4 {[%emt 0:1:49]} Nc7 {[%emt 0:3:47]} 25. Ra5 {[%emt 0:4:47]} Bg1 {[%emt 0:0:44][%cal Ya7a6]} 26. Ra1 {[%emt 0:3:5]} Bc5 {[%emt 0:0:48]} 27. Ba5 {[%emt 0:4:12]} Kd7 {[%emt 0:8:35]} 28. Bc2 {[%emt 0:7:28]} Na6 {[%emt 0:7:48]} 29. g4 {[%emt 0:5:30]} Ke7 {[%emt 0:16:50]} 30. h4 {[%emt 0:4:59]} g6 {[%emt 0:4:9]} 31. f5 {[%emt 0:2:24]} Kf8 {[%emt 0:7:53]} 32. fxe6 {[%emt 0:22:58]} fxe6 {[%emt 0:0:41] The position is equal.} 33. Bd3 {[%emt 0:0:38]} Bb4+ {[%emt 0:5:50]} 34. Ke3 {[%emt 0:1:26]} Bc5+ {[%emt 0:1:34]} 35. Kd2 {[%emt 0:0:35]} Bb4+ {[%emt 0:0:35]} 36. Ke2 {[%emt 0:1:47]} Bxa5 {[%emt 0:4:41]} 37. Rxa5 {[%emt 0:0:49]} Nb4 {[%emt 0:0:40]} 38. Rxa7 {[%emt 0:0:59]} Nc6 {[%emt 0:1:4][%csl Ya7,Ye5]} 39. Ra6 {[%emt 0:2:12]} Nxe5 {[%emt 0:0:45]} 40. Rxe6 {[%emt 0:0:0]} Nxg4 {[%emt 0:0:0] Weighted Error Value: White=0.04 (flawless) /Black=0.24 (precise)   Mistake:       	---       	Black=1      OK:         	White=3     	Black=9      Best:        	White=1     	Black=3} 1/2-1/2

[Event "88th Tata Steel Masters 2026"]
[White "Van Foreest,Jorden"]
[Black "Keymer,Vincent"]
[Site "Wijk aan Zee"]
[Round "9.5"]
[Annotator "TA"]
[Result "1-0"]
[Date "2026.01.27"]
[WhiteElo "2703"]
[BlackElo "2776"]
[PlyCount "51"]
[TimeControl "60"]

{[%evp 10,50,9,9,9,9,10,0,0,-30,8,-7,25,13,17,9,28,18,96,100,154,150,179,195,179,192,334,318,329,330,424,345,335,345,1202,1113,2219,2153,1882,2014,1815,1645,5506]} 1. Nf3 {[%emt 0:0:0]} d5 {[%emt 0:0:0]} 2. d4 {[%emt 0:0:0]} Nf6 {[%emt 0:0:0]} 3. Bf4 {[%emt 0:0:0]} e6 {[%emt 0:0:0]} 4. e3 {[%emt 0:0:0]} Bd6 {[%emt 0:0:0]} 5. Bd3 {[%emt 0:0:0]} Bxf4 {[%emt 0:0:0]} 6. exf4 {[%emt 0:0:0]} Qd6 {[%emt 0:0:0] 6...Qd6 scores better than 6...0-0. D02: 1 d4 d5 2 Nf3 sidelines, including 2...Nf6 3 g3 and 2...Nf6 3 Bf4.} 7. Qd2 {[%emt 0:0:0]} b6 {[%emt 0:0:0]} 8. Nc3 {[%emt 0:0:0]} c5 {[%emt 0:7:59] The position is equal.} 9. h4 {[%emt 0:0:0][%cal Yh2h4,Yh4h5,Yh5h6][%mdl 32]} Nc6 $146 {[%emt 0:11:15]} ({Predecessor:} 9... a6 10. Ne5 Nc6 11. Nxc6 Qxc6 12. Be2 Bb7 13. Rh3 O-O 14. h5 h6 15. g4 cxd4 16. Qxd4 {0-1 Tabatabaei,M (2702)-Anton Guijarro,D (2667) ESP-chT CECLUB Honor 2024 (3.13)} )10. h5 {[%emt 0:0:0]} Bb7 {[%emt 0:3:43]} 11. h6 {[%emt 0:0:0]} g6 {[%emt 0:0:58]} 12. Bb5 {[%emt 0:7:26]} c4 {[%emt 0:26:42]} 13. Ne5 {[%emt 0:4:9]} Ng8 {[%emt 0:4:4] [#]} (13... O-O $11 )14. O-O-O $1 $16 {[%emt 0:9:46]} f6 {[%emt 0:3:35]} (14... Nf6 $142 )15. Nxc4 {[%emt 0:5:28] A sharp opening White has more active pieces.} dxc4 {[%emt 0:0:48]} 16. d5 {[%emt 0:0:35] White plays in the center} (16. Bxc4 Nce7 17. f5 gxf5 $11 )exd5 {[%emt 0:2:52]} 17. Qe3+ {[%emt 0:10:39]} ({Don't take} 17. Nxd5 Kf8 $16 )Kf8 {[%emt 0:17:39]} (17... Qe7 $142 )18. Rxd5 $18 {[%emt 0:1:53]} Qe7 {[%emt 0:8:24]} 19. Qd2 {[%emt 0:2:4]} Ne5 {[%emt 0:2:10]} 20. fxe5 {[%emt 0:5:44]} Bxd5 {[%emt 0:0:31]} 21. Nxd5 {[%emt 0:0:36]} ({Not} 21. Qxd5 Rd8 22. exf6 (22. Qxc4 Qxe5 23. Ne2 Qd5 $11 )Qxf6 $16 )Qc5 {[%emt 0:0:54]} (21... Rd8 )22. Nf4 {[%emt 0:8:7] [#] White threatens Ne6+ and mate. White is clearly winning.} c3 {[%emt 0:10:39] Black is weak on the light squares} 23. Qd7 {[%emt 0:4:0][%cal Rf4e6]} Qe7 {[%emt 0:1:20]} 24. Qd5 {[%emt 0:2:12]} Re8 {[%emt 0:5:18]} 25. Bxe8 {[%emt 0:1:2]} fxe5 {[%emt 0:0:32]} 26. Bxg6 {[%emt 0:1:38] Weighted Error Value: White=0.09 (flawless) /Black=1.09   Mistake:       	---       	Black=4      Inaccurate:     	White=1     	Black=3      OK:         	White=1     	Black=2      Strong:       	White=1     	---} 1-0

[Event "88th Tata Steel Masters 2026"]
[White "Erigaisi Arjun"]
[Black "Niemann,Hans Moke"]
[Site "Wijk aan Zee"]
[Round "9.6"]
[Annotator "TA"]
[Result "1/2-1/2"]
[Date "2026.01.27"]
[WhiteElo "2775"]
[BlackElo "2725"]
[PlyCount "44"]
[TimeControl "60"]

{[%evp 11,44,8,9,12,15,8,14,0,2,14,22,19,12,17,22,24,27,1,0,1,25,33,26,20,16,13,16,15,40,0,0,0,43,0,0]} 1. Nf3 {[%emt 0:0:0][%cal Yg1f3,Yf3d4,Yd4b3][%mdl 32]} Nf6 {[%emt 0:0:0]} 2. c4 {[%emt 0:0:0]} c5 {[%emt 0:0:0]} 3. Nc3 {[%emt 0:0:0]} Nc6 {[%emt 0:0:0]} 4. d4 {[%emt 0:0:0]} cxd4 {[%emt 0:0:0]} 5. Nxd4 {[%emt 0:0:0]} e6 {[%emt 0:0:0]} 6. a3 {[%emt 0:0:0]} Bc5 {[%emt 0:0:0]} 7. Nb3 {[%emt 0:0:0] A33: Symmetrical English: 2 Nf3 Nf6 3 d4 cxd4 4 Nxd4 e6 5 Nc3 Nc6.} Bb6 $1 {[%emt 0:0:0][%mdl 4] is recently more successful than 7...Be7.} 8. Bf4 {[%emt 0:0:0]} d5 {[%emt 0:0:0]} 9. c5 {[%emt 0:0:0]} Bc7 {[%emt 0:0:0]} 10. Bxc7 {[%emt 0:0:0]} Qxc7 {[%emt 0:0:0]} 11. Nb5 {[%emt 0:0:0]} Qe5 {[%emt 0:1:34]} 12. Nd6+ {[%emt 0:0:0]} Ke7 {[%emt 0:3:18]} 13. Qc1 {[%emt 0:0:0]} Rd8 {[%emt 0:13:21]} 14. f4 {[%emt 0:0:0]} Qh5 {[%emt 0:1:5]} 15. e3 {[%emt 0:0:46]} Ne4 $146 {[%emt 0:5:36]} ({Predecessor:} 15... e5 16. Bb5 Ng4 17. Qd1 exf4 18. exf4 Kf8 19. Qe2 d4 20. Bc4 Qh4+ 21. g3 Qf6 {½-½ Oganian,M (2462)-Sek,K (2465) RUS-ch Higher League 70th 2017 (4)} )16. Nxe4 {[%emt 0:1:20]} dxe4 {[%emt 0:19:9]} 17. Be2 {[%emt 0:25:3]} Qh4+ {[%emt 0:0:0]} 18. g3 {[%emt 0:0:36]} Qh3 {[%emt 0:0:0]} 19. Bf1 {[%emt 0:0:36]} Qh5 {[%emt 0:0:0]} 20. Be2 {[%emt 0:0:46]} Qh3 {[%emt 0:0:0]} 21. Bf1 {[%emt 0:0:36] Dodges Qg2} Qh5 {[%emt 0:0:0]} 22. Be2 {[%emt 0:0:40]} Qh3 {[%emt 0:1:2] A rather calm draw.   Weighted Error Value: White=0.09 (flawless) /Black=0.04 (flawless)   Inaccurate:     	White=2     	---        OK:         	White=1     	Black=7} 1/2-1/2

[Event "88th Tata Steel Masters 2026"]
[White "Praggnanandhaa R"]
[Black "Aravindh,Chithambaram VR."]
[Site "Wijk aan Zee"]
[Round "9.7"]
[Annotator "TA"]
[Result "1-0"]
[Date "2026.01.27"]
[WhiteElo "2758"]
[BlackElo "2700"]
[PlyCount "167"]
[TimeControl "60"]

{[%evp 19,167,0,0,0,0,0,15,21,21,9,18,9,25,17,63,12,19,20,20,0,48,0,0,0,20,12,22,29,29,0,36,31,90,55,66,66,83,84,80,85,87,93,103,87,91,91,101,62,50,48,45,50,52,52,52,52,57,61,72,72,72,72,72,72,72,72,72,72,72,72,72,8,72,72,72,72,72,72,72,72,79,79,89,51,113,120,136,138,129,109,114,77,146,141,479,466,419,405,640,640,852,828,938,937,1298,1133,1201,1125,1025,1029,917,917,1537,1250,1759,1759,1509,1498,29975,29977,29979,29975,29969,0,29978,29979,29978,29972,29971,29973,29972,29974,12841,4134,29980,29982,29982,29983,29983,29984,29984,29985,29982,29981,29986,29987,29987,29988,29989,29989]} 1. d4 {[%emt 0:0:0]} Nf6 {[%emt 0:0:0]} 2. c4 {[%emt 0:0:0]} e6 {[%emt 0:0:0]} 3. Nf3 {[%emt 0:0:0]} d5 {[%emt 0:0:0]} 4. Nc3 {[%emt 0:0:0]} Bb4 {[%emt 0:0:0]} 5. cxd5 {[%emt 0:0:0]} exd5 {[%emt 0:0:0]} 6. Qa4+ {[%emt 0:0:0]} Nc6 {[%emt 0:0:0]} 7. Bg5 {[%emt 0:0:0]} h6 {[%emt 0:0:0]} 8. Bxf6 {[%emt 0:0:0]} Qxf6 {[%emt 0:0:0]} 9. e3 {[%emt 0:0:0]} O-O {[%emt 0:0:0]} 10. Rc1 {[%emt 0:0:0]} Rd8 {[%emt 0:0:26]} 11. Bd3 {[%emt 0:0:0] D38: Queen's Gambit Declined: Ragozin Defence (4 Nf3 Bb4).} Bg4 {[%emt 0:9:37]} 12. Be2 {[%emt 0:0:0]} Bf5 {[%emt 0:11:24]} 13. O-O {[%emt 0:4:25] The position is equal.} Bf8 $146 {[%emt 0:4:41]} ({Predecessor:} 13... Bxc3 14. Rxc3 Qd6 15. Rfc1 Rdc8 16. Qb3 Rab8 17. Qa3 Qxa3 18. bxa3 f6 19. Bb5 Bd7 20. Rc5 Be8 {1-0 Martinovici,I (2358)-Sorensen,H (2267) EU-ch U16 28th 2018 (5)} )14. Qb5 {[%emt 0:11:32][%csl Yb7,Yd5]} Qe6 {[%emt 0:0:46]} 15. Na4 {[%emt 0:9:18]} Rdb8 {[%emt 0:14:29]} 16. Nc5 {[%emt 0:4:29]} Qc8 {[%emt 0:1:49]} (16... Qf6 $11 )17. Qb3 {[%emt 0:17:1]} (17. Na6 $14 bxa6 18. Qxc6 )Bxc5 {[%emt 0:12:29]} 18. Rxc5 {[%emt 0:1:15]} Ne7 {[%emt 0:0:42]} 19. Qa3 {[%emt 0:7:33]} (19. Rfc1 $5 c6 $8 20. Qd1 $11 )c6 {[%emt 0:2:15]} (19... Qd8 $11 {is superior.} )20. b4 {[%emt 0:2:11]} (20. Ra5 $14 Ng6 21. Rc1 (21. Rxa7 Rxa7 22. Qxa7 Ra8 $11 ))a6 $11 {[%emt 0:0:55]} 21. Qb2 {[%emt 0:6:20]} Bg4 {[%emt 0:1:10]} 22. a4 {[%emt 0:1:9][%cal Ya2a4,Ya4b5][%mdl 32]} Bxf3 {[%emt 0:2:38]} 23. Bxf3 {[%emt 0:1:20]} Qe6 {[%emt 0:2:44]} 24. b5 {[%emt 0:7:14]} axb5 {[%emt 0:3:7]} 25. axb5 {[%emt 0:0:34]} Ra5 {[%emt 0:1:24]} (25... Rc8 $14 )26. Be2 {[%emt 0:2:12]} Qd6 {[%emt 0:6:10]} 27. Rb1 {[%emt 0:5:51]} Qd8 {[%emt 0:3:27]} 28. bxc6 {[%emt 0:5:50] White plays on the queen side and is better} Rxc5 {[%emt 0:1:13]} 29. dxc5 {[%emt 0:0:34]} Nxc6 {[%emt 0:0:36]} 30. Bf3 {[%emt 0:4:17]} Rc8 {[%emt 0:3:43][%cal Yb8c8,Yc8c7,Yc7d7][%mdl 32]} 31. h3 {[%emt 0:4:15]} (31. Qxb7 $2 {perishes.} Rb8 $19 )Ne7 {[%emt 0:8:33]} 32. Qd4 {[%emt 0:3:17]} (32. Qxb7 Rxc5 33. Qa6 Qc7 $14 )Rc7 {[%emt 0:0:44]} 33. e4 {[%emt 0:7:29][%cal Re4d5] White is much more active.} Nc6 {[%emt 0:0:53]} 34. Qxd5 {[%emt 0:0:36]} Rd7 {[%emt 0:3:37]} 35. Qb3 {[%emt 0:1:58]} Nd4 {[%emt 0:7:20]} 36. Qe3 {[%emt 0:0:53]} Nxf3+ {[%emt 0:9:27]} 37. Qxf3 $14 {[%emt 0:0:35][%mdl 4096] Endgame KQR-KQR. White is a pawn up.} Qg5 {[%emt 0:0:37]} 38. Qg4 {[%emt 0:3:55]} Qxg4 {[%emt 0:0:47]} 39. hxg4 {[%emt 0:0:33] KR-KR. White is a pawn up.} Rc7 {[%emt 0:0:54]} 40. Rb5 {[%emt 0:0:0]} Kf8 {[%emt 0:0:0]} 41. Kf1 {[%emt 0:22:21]} Ke7 {[%emt 0:22:6]} 42. Ke2 {[%emt 0:1:32]} Kd7 {[%emt 0:0:57]} 43. Kd3 {[%emt 0:0:20]} Kc6 {[%emt 0:0:9]} 44. Kc4 {[%emt 0:0:13]} Rd7 {[%emt 0:0:5]} 45. Rb6+ {[%emt 0:1:0]} Kc7 {[%emt 0:0:15]} 46. Rb2 {[%emt 0:3:13]} Rd1 {[%emt 0:0:6]} 47. Kb5 {[%emt 0:12:2]} Re1 {[%emt 0:1:22]} 48. f3 {[%emt 0:0:51]} Rd1 {[%emt 0:0:54]} 49. Rb4 {[%emt 0:2:45]} Re1 {[%emt 0:11:35]} 50. Ra4 {[%emt 0:2:52]} Rb1+ {[%emt 0:5:29]} 51. Kc4 {[%emt 0:1:45]} Rc1+ {[%emt 0:6:41]} (51... Kc6 $14 )52. Kd5 $16 {[%emt 0:4:24]} Rc2 {[%emt 0:0:51]} 53. Ra8 {[%emt 0:0:13]} Rxg2 {[%emt 0:0:8]} 54. Rf8 {[%emt 0:2:45]} Rd2+ {[%emt 0:0:50]} 55. Ke5 {[%emt 0:0:33]} Rd7 {[%emt 0:0:41] [#]} ({Black should play} 55... f6+ 56. Ke6 Rf2 )56. Rg8 $1 {[%emt 0:0:5]} Kc6 $2 {[%emt 0:2:23][%mdl 8192]} (56... g5 $16 )57. Rxg7 $18 {[%emt 0:0:58]} Kxc5 {[%emt 0:0:4]} 58. Kf6 {[%emt 0:0:58]} b5 {[%emt 0:0:3]} (58... Rd3 $142 )59. e5 {[%emt 0:2:19]} Kd5 {[%emt 0:3:46]} 60. f4 {[%emt 0:0:42]} b4 {[%emt 0:0:20]} 61. Rxf7 {[%emt 0:16:28]} Rxf7+ {[%emt 0:15:35]} 62. Kxf7 {[%emt 0:0:1] K3P-KPP. White is a pawn up.} b3 {[%emt 0:0:5]} 63. e6 {[%emt 0:0:3]} b2 {[%emt 0:0:3]} 64. e7 {[%emt 0:0:2]} b1=Q {[%emt 0:0:6]} 65. e8=Q {[%emt 0:0:3] KQ-KQ. White is a pawn up.} Qg1 {[%emt 0:0:39]} 66. Qe5+ {[%emt 0:2:27]} Kc6 {[%emt 0:1:5]} 67. Qe4+ {[%emt 0:0:12]} Kb5 {[%emt 0:2:50]} 68. f5 {[%emt 0:0:50]} h5 {[%emt 0:0:15]} 69. gxh5 {[%emt 0:0:32]} Qa7+ {[%emt 0:0:31]} 70. Kg6 {[%emt 0:0:48]} Qg1+ {[%emt 0:0:5]} 71. Kf7 {[%emt 0:0:23]} Qa7+ $1 {[%emt 0:0:6]} 72. Qe7 {[%emt 0:0:6]} Qa2+ {[%emt 0:0:5]} 73. Qe6 {[%emt 0:0:8]} Qa7+ {[%emt 0:0:6]} 74. Kf8 {[%emt 0:0:54]} Qc5+ {[%emt 0:0:10]} 75. Ke8 {[%emt 0:0:16]} Ka5 {[%emt 0:0:18]} 76. h6 {[%emt 0:0:35]} Qc7 {[%emt 0:0:16]} 77. f6 {[%emt 0:1:12][%cal Yf5f6,Yf6f7][%mdl 32] White mates.} Qb8+ {[%emt 0:0:7]} 78. Kf7 {[%emt 0:0:8]} Qc7+ {[%emt 0:0:28]} 79. Kf8 {[%emt 0:0:46]} Qc5+ {[%emt 0:0:18]} 80. Kg7 {[%emt 0:0:29]} Qg1+ {[%emt 0:0:20]} 81. Kh8 {[%emt 0:0:32]} Qc5 {[%emt 0:0:27]} 82. f7 {[%emt 0:0:20]} Qc3+ {[%emt 0:0:7]} 83. Kh7 {[%emt 0:0:8]} Qc7 {[%emt 0:0:4]} 84. Qg6 {[%emt 0:0:18] Weighted Error Value: White=0.08 (flawless) /Black=0.33   Loses game:     	---       	Black=1      Mistake:       	White=2     	Black=6      Inaccurate:     	White=5     	Black=2      OK:         	White=5     	Black=6      Best:        	---       	Black=1      Strong:       	White=1     	---} 1-0